{"text_format":"1","workbook":"xlsx","n_sheets":8,"sheets":["Capa","Dados Gerais","Ajustes","Resumo","Tabelas","Instruções","Instruções 2","backup"],"not_rendered":{"charts":0,"images":27,"macros":1,"external_links":0,"defined_names":15,"comments":2,"pivot_tables":0},"unopened":[],"bounds":{"document_bytes":16777216,"sheet_cells":100000,"rows_first":2000,"rows_last":500,"rows_between":2000,"halvings":0,"cell_chars":16384,"cell_head_chars":4096},"cells_cut":0,"cells_raw":0,"read":"whole","date_system":"1900"}

{"sheet":"Capa","index":0,"n_rows":36,"n_cols":11,"rows_kept":36,"cut":false,"hidden":false,"merged":[[1,5,1,8],[35,8,35,9],[7,2,10,8],[12,2,15,8],[17,2,18,8],[20,2,21,6]]}
[]
[null,null,null,null,null,"CHECK LIST - ESTUDO DE PROTEÇÃO"]
[]
[]
[null,null,"Olá,"]
[null,null,"Seja bem-vindo(a)!"]
[]
[null,null,"Esse é um formulário desenvolvido pela ELEKTRO, para auxiliar na apresentação de estudos de proteção/seletividade, possibilitando uma conferência dos ajustes, minimizando reprovas. DIS-NOR-36 (Carga) e ND.65 (MiniGD Fotovoltaica)"]
[]
[]
[]
[]
[null,null,"Navegue pelo formulário, seguindo as orientações e preenchendo as informações solicitadas, ao final, ser-lhe-á apresentado um \"status\" dos ajustes."]
[]
[]
[]
[]
[null,null,"O processo é simples e rápido!"]
[]
[]
[null,null,"Pronto(a) para iniciar o preenchimento?"]
[]
[]
[]
[]
[]
[]
[]
[]
[]
[]
[]
[]
[]
[]
[null,null,null,null,null,null,null,"Created by:","Danilo Santos",null,"Ver. 1.0"]

{"sheet":"Dados Gerais","index":1,"n_rows":28,"n_cols":15,"rows_kept":28,"cut":false,"hidden":false,"merged":[[9,10,9,15],[28,1,28,15],[14,7,14,9],[14,10,14,15],[13,10,13,15],[15,1,15,15],[17,5,17,15],[14,1,14,6],[16,14,16,15],[16,5,16,12],[16,1,16,4],[18,5,18,7],[25,1,25,4],[26,1,26,4],[13,1,13,6],[27,1,27,4],[8,7,8,9],[13,7,13,9],[12,1,12,6],[12,7,12,9],[2,5,2,15],[3,1,3,15],[4,1,4,15],[5,5,6,15],[8,10,8,15],[8,1,8,6],[7,5,7,15],[5,1,6,4],[7,1,7,4],[12,10,12,15],[9,1,9,6],[9,7,9,9],[21,11,21,13],[22,1,22,15],[23,5,23,15],[24,1,24,4],[23,1,23,4],[19,8,19,9],[18,8,18,9],[21,5,21,10],[21,1,21,4],[18,1,18,4],[19,1,19,4],[19,5,19,7],[17,1,17,4],[20,1,20,4],[18,10,18,15],[19,10,19,15],[27,5,27,7],[21,14,21,15],[20,5,20,13],[27,8,27,10],[25,11,25,15],[26,11,26,15],[27,11,27,15],[24,5,24,15],[25,8,25,10],[26,8,26,10],[25,5,25,7],[26,5,26,7],[10,1,10,6],[10,7,10,9],[10,10,10,15],[11,1,11,6],[11,7,11,9],[11,10,11,15]]}
[]
[]
[null,null,null,null,null,"CHECK LIST - ESTUDO DE PROTEÇÃO"]
[]
[null,"Dados Básicos do Serviço"]
[null,"Título do Serviço:"]
[]
[null,"Tipo de Serviço:"]
[null,"Diagrama Unifilar Enviado",null,null,null,null,null,null,null,null,{"$f":"IF(H9=\"SIM\",\"OK\",IF(H9=\"Não\",\"ENVIAR. REPROVADO\",\"\"))","v":""}]
[null,"Diagrama Trifilar Enviado",null,null,null,null,null,null,null,null,{"$f":"IF(H10=\"SIM\",\"OK\",IF(H10=\"Não\",\"ENVIAR. REPROVADO\",\"\"))","v":""}]
[null,"Coordenograma Enviado",null,null,null,null,null,null,null,null,{"$f":"IF(H11=\"SIM\",\"OK\",IF(H11=\"Não\",\"ENVIAR. REPROVADO\",\"\"))","v":""}]
[null,"Estudo de Proteção Enviado",null,null,null,null,null,null,null,null,{"$f":"IF(H12=\"SIM\",\"OK\",IF(H12=\"Não\",\"ENVIAR. REPROVADO\",\"\"))","v":""}]
[null,"Fonte e Trip capacitivo externos",null,null,null,null,null,null,null,null,{"$f":"IF(H13=\"SIM\",\"OK\",IF(H13=\"Não\",\"ENVIAR. REPROVADO\",\"\"))","v":""}]
[null,"Minigeração Fotovoltaica",null,null,null,null,null,null,null,null,{"$f":"IF(H14=\"SIM\",\"AJUSTAR FUNÇÕES ANSI 32,59N e 27-0\",IF(H14=\"Não\",\"NÃO AJUSTAR FUNÇÕES ANSI 32,59N e 27-0\",\"\"))","v":""}]
[null,"Enviada ART/CFT/Outro (Proteção):",null,null,null,null,null,null,null,null,{"$f":"IF(H15=\"sim\",\"OK\",IF(H15=\"Não\",\"ENVIAR. REPROVADO\",\"\"))","v":""}]
[null,"Dados da Unidade Consumidora"]
[null,"Responsável Pela U.C.",null,null,null,null,null,null,null,null,null,null,null,"UC:"]
[null,"E-mail"]
[null,"RG:",null,null,null,null,null,null,"CPF/CNPJ:"]
[null,"Telefone fixo",null,null,null,null,null,null,"Celular"]
[null,"Endereço",null,null,null,null,null,null,null,null,null,null,null,null,"Nº."]
[null,"Município/Localidade",null,null,null,null,null,null,null,null,null,"UF"]
[null,"Dados do Responsável Técnico"]
[null,"Responsável Técnico:"]
[null,"E-mail"]
[null,"Telefone fixo",null,null,null,null,null,null,"Celular"]
[null,"Conselho de Classe:",null,null,null,null,null,null,"Nº CREA/CFT/..."]
[null,"Formação",null,null,null,null,null,null,"Nº da ART/TRT/..."]

{"sheet":"Ajustes","index":2,"n_rows":43,"n_cols":85,"rows_kept":43,"cut":false,"hidden":false,"merged":[[4,51,4,60],[2,46,2,50],[3,46,3,50],[4,46,4,50],[5,46,6,50],[5,51,6,60],[17,20,17,21],[18,20,18,21],[19,20,19,21],[16,72,16,74],[11,84,11,86],[16,14,16,19],[17,14,17,19],[18,14,18,19],[19,14,19,19],[18,77,18,86],[19,77,19,83],[19,84,19,86],[11,65,12,71],[13,65,13,71],[14,65,15,71],[16,65,16,71],[15,49,15,54],[14,49,14,54],[14,37,14,42],[15,37,15,42],[14,43,14,48],[15,43,15,48],[15,27,15,36],[14,27,14,36],[29,75,29,82],[1,14,1,19],[2,14,2,19],[3,14,4,19],[5,14,6,19],[8,14,8,19],[9,14,10,19],[30,65,30,71],[30,72,30,74],[27,65,28,71],[27,72,28,74],[29,65,29,71],[29,72,29,74],[6,65,6,86],[25,65,25,74],[26,72,26,74],[27,75,28,81],[11,77,11,83],[12,77,13,83],[12,84,13,86],[21,77,22,83],[21,84,22,86],[24,77,25,83],[24,84,25,86],[20,77,20,83],[20,84,20,86],[23,65,23,71],[23,72,23,74],[26,65,26,71],[8,77,8,86],[9,77,9,83],[9,84,9,86],[10,77,10,83],[10,84,10,86],[18,65,18,74],[19,65,19,71],[19,72,19,74],[20,65,20,71],[20,72,20,74],[21,65,22,71],[21,72,22,74],[9,72,9,74],[10,72,10,74],[11,72,12,74],[13,72,13,74],[14,72,15,74],[9,65,9,71],[10,65,10,71],[8,65,8,74],[36,27,36,33],[36,34,36,40],[36,41,36,47],[36,48,36,54],[28,55,28,61],[25,11,27,20],[34,27,34,54],[35,27,35,33],[35,34,35,40],[35,41,35,47],[35,48,35,54],[29,48,29,54],[30,41,30,47],[31,27,31,33],[31,34,31,40],[30,34,30,40],[31,41,31,47],[31,48,31,54],[30,48,30,54],[29,41,29,47],[29,27,29,33],[30,27,30,33],[29,34,29,40],[42,3,42,14],[42,15,42,20],[37,8,37,20],[38,3,38,7],[38,8,38,20],[37,3,37,7],[41,3,41,7],[40,3,40,7],[40,8,40,14],[41,8,41,14],[40,15,40,20],[41,15,41,20],[27,27,27,33],[27,34,27,40],[27,41,27,47],[27,48,27,54],[28,27,28,33],[28,34,28,40],[28,41,28,47],[28,48,28,54],[29,3,30,15],[26,27,26,54],[23,27,23,36],[23,37,23,42],[23,43,23,48],[23,49,23,54],[24,27,24,36],[24,37,24,42],[24,43,24,48],[24,49,24,54],[21,49,21,54],[22,49,22,54],[21,37,22,42],[21,43,22,48],[17,27,17,54],[18,27,19,36],[18,37,19,42],[18,43,19,48],[18,49,19,54],[20,27,20,36],[20,37,20,42],[20,43,20,48],[20,49,20,54],[1,27,1,43],[2,39,2,43],[3,39,3,43],[4,39,4,43],[5,39,6,43],[8,27,8,54],[12,37,13,42],[12,43,13,48],[9,49,10,54],[11,49,11,54],[12,49,12,54],[13,49,13,54],[11,37,11,42],[9,43,10,48],[11,43,11,48],[12,27,13,36],[2,27,2,33],[2,34,2,38],[9,27,10,36],[9,37,10,42],[11,27,11,36],[1,46,1,60],[2,51,2,60],[3,51,3,60],[36,3,36,20],[3,3,4,13],[3,27,3,33],[4,27,4,33],[5,27,6,33],[3,34,3,38],[4,34,4,38],[5,34,6,38],[33,10,33,15],[34,3,34,9],[34,10,34,15],[33,17,33,20],[34,17,34,20],[31,3,31,9],[32,3,32,9],[33,3,33,9],[31,10,31,15],[32,10,32,15],[21,3,21,20],[22,16,22,20],[23,16,23,20],[24,16,24,20],[25,3,27,10],[21,27,22,36],[22,3,22,10],[23,3,23,10],[24,3,24,10],[23,11,23,15],[22,11,22,15],[24,11,24,15],[1,3,1,13],[2,3,2,13],[5,3,6,13],[14,3,15,13],[14,14,15,19],[19,3,19,13],[18,3,18,13],[13,14,13,19],[13,3,13,13],[17,3,17,13],[16,3,16,13],[8,3,8,13],[11,3,11,13],[12,3,12,13],[11,14,11,19],[12,14,12,19],[9,3,10,13]]}
[]
[null,null,null,"Fator de Potência",null,null,null,null,null,null,null,null,null,null,null,null,null,null,null,null,null,null,null,null,null,null,null,"Corrente de Curto-Circuito (Fonte)",null,null,null,null,null,null,null,null,null,null,null,null,null,null,null,null,null,null,"Dados do Relé"]
[null,null,null,"Tensão Fornecimento (KV)",null,null,null,null,null,null,null,null,null,null,null,null,null,null,null,null,null,null,null,null,null,null,null,"Curto-Circuito",null,null,null,null,null,null,"Simétrico",null,null,null,null,"Assimétrico",null,null,null,null,null,null,"Relé"]
[null,null,null,"Demanda Contratada (kW)",null,null,null,null,null,null,null,null,null,null,null,null,null,null,null,null,null,null,null,null,null,null,null,"Trifásico",null,null,null,null,null,null,null,null,null,null,null,null,null,null,null,null,null,null,"Fabricante"]
[null,null,null,null,null,null,null,null,null,null,null,null,null,null,null,null,null,null,null,null,null,null,null,null,null,null,null,"Bifásico",null,null,null,null,null,null,null,null,null,null,null,null,null,null,null,null,null,null,"Modelo"]
[null,null,null,"Potência Total de Transformação (kVA)",null,null,null,null,null,null,null,null,null,null,null,null,null,null,null,null,null,null,null,null,null,null,null,"Fase-Terra Mínimo",null,null,null,null,null,null,null,null,null,null,null,null,null,null,null,null,null,null,"Funções"]
[null,null,null,null,null,null,null,null,null,null,null,null,null,null,null,null,null,null,null,null,null,null,null,null,null,null,null,null,null,null,null,null,null,null,null,null,null,null,null,null,null,null,null,null,null,null,null,null,null,null,null,null,null,null,null,null,null,null,null,null,null,null,null,null,null,"CONFERÊNCIA DOS AJUSTES - SELETIVIDADE ELEKTRO X CLIENTE"]
[]
[null,null,null,"I. Carga (A)",null,null,null,null,null,null,null,null,null,null,{"$f":"O4/(O3*O2*SQRT(3))","v":{"$error":"#DIV/0!"}},null,null,null,null,null,null,null,null,null,null,null,null,"Ajustes das Proteções da Fonte (ELEKTRO)",null,null,null,null,null,null,null,null,null,null,null,null,null,null,null,null,null,null,null,null,null,null,null,null,null,null,null,null,null,null,null,null,null,null,null,null,null,"51 (Fase) - Chek",null,null,null,null,null,null,null,null,null,null,null,"50 (Fase) - Chek"]
[null,null,null,"I. Nominal de Transformação - Total(A)",null,null,null,null,null,null,null,null,null,null,{"$f":"O6/(O3*SQRT(3))","v":{"$error":"#DIV/0!"}},null,null,null,null,null,null,null,null,null,null,null,null,"Funções",null,null,null,null,null,null,null,null,null,"Fase (51/50)",null,null,null,null,null,"Neutro (51N/50N)",null,null,null,null,null,"Neutro Sensível (51NS/GS)",null,null,null,null,null,null,null,null,null,null,null,null,null,null,null,"Condições",null,null,null,null,null,null,"Status",null,null,null,null,"Condições",null,null,null,null,null,null,"Status"]
[null,null,null,null,null,null,null,null,null,null,null,null,null,null,null,null,null,null,null,null,null,null,null,null,null,null,null,null,null,null,null,null,null,null,null,null,null,null,null,null,null,null,null,null,null,null,null,null,null,null,null,null,null,null,null,null,null,null,null,null,null,null,null,null,null,"51>I.Carga",null,null,null,null,null,null,{"$f":"IF(AL21>=O9,\"OK\",FALSE)","v":{"$error":"#DIV/0!"}},null,null,null,null,"50>INRUSH",null,null,null,null,null,null,{"$f":"IF(AL25>O14,\"OK\",FALSE)","v":false}]
[null,null,null,"Fator K (inrush)",null,null,null,null,null,null,null,null,null,null,null,null,null,null,null,null,null,null,null,null,null,null,null,"Temporizado - Ip(A)",null,null,null,null,null,null,null,null,null,null,null,null,null,null,null,null,null,null,null,null,null,8,null,null,null,null,null,"(A)",null,null,null,null,null,null,null,null,null,"51 até 1,3 vezes, I carga",null,null,null,null,null,null,{"$f":"IF(AL21/O9 <=1.31,\"OK\",FALSE)","v":{"$error":"#DIV/0!"}},null,null,null,null,"50<Icc 2ø",null,null,null,null,null,null,{"$f":"IF(AL25<AI5,\"OK\",FALSE)","v":false}]
[null,null,null,"Inrush Teórico(A)",null,null,null,null,null,null,null,null,null,null,{"$f":"O10*O12","v":{"$error":"#DIV/0!"}},null,null,null,null,null,null,null,null,null,null,null,null,"Time Level/Tempo Definido (51NS)",null,null,null,null,null,null,null,null,null,null,null,null,null,null,null,null,null,null,null,null,null,2.2000000000000002,null,null,null,null,null,"(s)",null,null,null,null,null,null,null,null,null,null,null,null,null,null,null,null,null,null,null,null,null,"50<80% da 50 fonte (ELEKTRO)",null,null,null,null,null,null,{"$f":"IF(AL25<=0.8*AL16,\"OK\",FALSE)","v":"OK"}]
[null,null,null,"Inrush Adotado (A)",null,null,null,null,null,null,null,null,null,null,null,null,null,null,null,null,null,null,null,null,null,null,null,null,null,null,null,null,null,null,null,null,null,null,null,null,null,null,null,null,null,null,null,null,null,null,null,null,null,null,null,null,null,null,null,null,null,null,null,null,null,"51<Icc 2ø",null,null,null,null,null,null,{"$f":"IF(AL21<AI5,\"OK\",FALSE)","v":false}]
[null,null,null,"Impedância do Menor Trafo (Z%)",null,null,null,null,null,null,null,null,null,null,null,null,null,null,null,null,null,null,null,null,null,null,null,"Padrão da Curva",null,null,null,null,null,null,null,null,null,null,null,null,null,null,null,null,null,null,null,null,null,null,null,null,null,null,null,null,null,null,null,null,null,null,null,null,null,"51<80% da 51 fonte (ELEKTRO)",null,null,null,null,null,null,{"$f":"IF(AL21<=0.8*AL12,\"OK\",FALSE)","v":"OK"}]
[null,null,null,null,null,null,null,null,null,null,null,null,null,null,null,null,null,null,null,null,null,null,null,null,null,null,null,"Instantâneo"]
[null,null,null,"Potência menor Trafo (kVA)",null,null,null,null,null,null,null,null,null,null,null,null,null,null,null,null,null,null,null,null,null,null,null,null,null,null,null,null,null,null,null,null,null,null,null,null,null,null,null,null,null,null,null,null,null,null,null,null,null,null,null,null,null,null,null,null,null,null,null,null,null,"Padrão da Curva",null,null,null,null,null,null,{"$f":"IF(AL24=\"MI\",\"OK\",IF(AL24=\"EI\",\"OK\",FALSE))","v":false}]
[null,null,null,"Corrente Menor Trafo (A)",null,null,null,null,null,null,null,null,null,null,{"$f":"IFERROR(O17/(O3*1.732),\"\")","v":""},null,null,null,null,null,null,null,null,null,null,null,null,"Ajustes das Proteções de Corrente da Carga (Cliente/Cabine)"]
[null,null,null,"Ponto ANSI Menor Trafo (A)",null,null,null,null,null,null,null,null,null,null,{"$f":"IFERROR(O18*Tabelas!E12,\"\")","v":""},null,null,null,null,null,{"$f":"IF(O15=4,\"2(s)\",IF(O15=5,\"3(s)\",IF(O15=6,\"4(s)\",IF(O15=7,\"5s\"))))","v":false},null,null,null,null,null,null,"Funções",null,null,null,null,null,null,null,null,null,"Fase (51/50)",null,null,null,null,null,"Neutro (51N/50N)",null,null,null,null,null,"Neutro Sensível (51NS/GS)",null,null,null,null,null,null,null,null,null,null,null,null,null,null,null,"51 (Neutro) - Chek",null,null,null,null,null,null,null,null,null,null,null,"50 (Neutro) - Chek"]
[null,null,null,null,null,null,null,null,null,null,null,null,null,null,null,null,null,null,null,null,null,null,null,null,null,null,null,null,null,null,null,null,null,null,null,null,null,null,null,null,null,null,null,null,null,null,null,null,null,null,null,null,null,null,null,null,null,null,null,null,null,null,null,null,null,"Condições",null,null,null,null,null,null,"Status",null,null,null,null,"Condições",null,null,null,null,null,null,"Status"]
[null,null,null,null,null,null,null,null,null,null,null,null,null,null,null,null,null,null,null,null,null,null,null,null,null,null,null,"Temporizado - Ip(A)",null,null,null,null,null,null,null,null,null,null,null,null,null,null,null,null,null,null,null,null,null,null,null,null,null,null,null,null,null,null,null,null,null,null,null,null,null,"51N<IccøT",null,null,null,null,null,null,{"$f":"IF(AR21<AI6,\"OK\",FALSE)","v":false},null,null,null,null,"50N<IccøT",null,null,null,null,null,null,{"$f":"IF(AR25<AI6,\"OK\",FALSE)","v":false}]
[null,null,null,"TC Adotado",null,null,null,null,null,null,null,null,null,null,null,null,null,null,null,null,null,null,null,null,null,null,null,"Time Level/Tempo Definido (51NS)",null,null,null,null,null,null,null,null,null,null,null,null,null,null,null,null,null,null,null,null,null,null,null,null,null,null,null,"(s)",null,null,null,null,null,null,null,null,null,"51<80% da 51N fonte (ELEKTRO)",null,null,null,null,null,null,{"$f":"IF(AR21<=0.8*AR12,\"OK\",FALSE)","v":"OK"},null,null,null,null,"50N<80% da 50N fonte (ELEKTRO)",null,null,null,null,null,null,{"$f":"IF(AR25<=0.8*AR16,\"OK\",FALSE)","v":"OK"}]
[null,null,null,"Relacão",null,null,null,null,null,null,null,null,null,null,null,null,5]
[null,null,null,"Classe de Exatidão",null,null,null,null,null,null,null,"10B",null,null,null,null,null,null,null,null,null,null,null,null,null,null,null,"Padrão da Curva",null,null,null,null,null,null,null,null,null,null,null,null,null,null,null,null,null,null,null,null,null,null,null,null,null,null,null,null,null,null,null,null,null,null,null,null,null,"Padrão da Curva",null,null,null,null,null,null,{"$f":"IF(AR24=\"mi\",\"OK\",IF(AR24=\"EI\",\"OK\",FALSE))","v":false}]
[null,null,null,"Itc% de I. nominal",null,null,null,null,null,null,null,{"$f":"L23/O10","v":{"$error":"#DIV/0!"}},null,null,null,null,{"$f":"IF(L25>1,\"OK\",FALSE)","v":{"$error":"#DIV/0!"}},null,null,null,null,null,null,null,null,null,null,"Instantâneo (I.prim)"]
[null,null,null,"RTC",null,null,null,null,null,null,null,{"$f":"L23/Q23","v":0},null,null,null,null,null,null,null,null,null,null,null,null,null,null,null,null,null,null,null,null,null,null,null,null,null,null,null,null,null,null,null,null,null,null,null,null,null,null,null,null,null,null,null,null,null,null,null,null,null,null,null,null,null,"51NS (GS) - Chek"]
[null,null,null,null,null,null,null,null,null,null,null,null,null,null,null,null,null,null,null,null,null,null,null,null,null,null,null,"Ajustes das Proteções deTensão da Carga (Cliente/Cabine)",null,null,null,null,null,null,null,null,null,null,null,null,null,null,null,null,null,null,null,null,null,null,null,null,null,null,null,null,null,null,null,null,null,null,null,null,null,"Condições",null,null,null,null,null,null,"Status"]
[null,null,null,null,null,null,null,null,null,null,null,null,null,null,null,null,null,null,null,null,null,null,null,null,null,null,null,"Função",null,null,null,null,null,null,"Primário (KV)",null,null,null,null,null,null,"Secundário (V)",null,null,null,null,null,null,"Tempo (s)",null,null,null,null,null,null,"% de Sobretensão",null,null,null,null,null,null,null,null,null,"51NS<80% da 51NS fonte (ELEKTRO)",null,null,null,null,null,null,{"$f":"IF(AX21<=6,IF(AX21>=3,\"OK\",FALSE),FALSE)","v":false}]
[null,null,null,null,null,null,null,null,null,null,null,null,null,null,null,null,null,null,null,null,null,null,null,null,null,null,null,"59T",null,null,null,null,null,null,{"$f":"(P41*BD29)","v":0},null,null,null,null,null,null,{"$f":"(P42*BD29)","v":0}]
[null,null,null,"Cálculo de Tensão de Saturação (V.SAT)",null,null,null,null,null,null,null,null,null,null,null,null,null,null,null,null,null,null,null,null,null,null,null,47,null,null,null,null,null,null,null,null,null,null,null,null,null,null,null,null,null,null,null,null,null,null,null,null,null,null,null,null,null,null,null,null,null,null,null,null,null,"Tempo",null,null,null,null,null,null,{"$f":"IF(AX22<=1,IF(AX22>=0.05,\"OK\",FALSE),FALSE)","v":false}]
[null,null,null,null,null,null,null,null,null,null,null,null,null,null,null,null,null,null,null,null,null,null,null,null,null,null,null,"27-0",null,null,null,null,null,null,"N/A",null,null,null,null,null,null,null,null,null,null,null,null,null,null,null,null,null,null,null,null,"Minigeração"]
[null,null,null,"Ztotal (Ω)",null,null,null,null,null,null,null,null,null,null,null,null,null,null,null,null,null,null,null,null,null,null,null,"59N",null,null,null,null,null,null,{"$f":"(P41*3)*0.9","v":0},null,null,null,null,null,null,{"$f":"(P42*3)*0.9","v":0},null,null,null,null,null,null,null,null,null,null,null,null,null,"Minigeração"]
[null,null,null,"Icc (A)",null,null,null,null,null,null,{"$f":"10000/L26","v":{"$error":"#DIV/0!"}}]
[null,null,null,"Vsat",null,null,null,null,null,null,{"$f":"K33*K32","v":{"$error":"#DIV/0!"}},null,null,null,null,null,null,{"$f":"IF(K34<Q24,\"OK\",FALSE)","v":{"$error":"#DIV/0!"}}]
[null,null,null,"I. Térmica (1s)",null,null,null,null,null,null,{"$f":"10000/L23","v":{"$error":"#DIV/0!"}},null,null,null,null,null,null,{"$f":"IF(K35<=80,\"OK\", FALSE)","v":{"$error":"#DIV/0!"}},null,null,null,null,null,null,null,null,null,"Ajustes das Proteções de Potência (Cliente/Cabine) Minigeração"]
[null,null,null,null,null,null,null,null,null,null,null,null,null,null,null,null,null,null,null,null,null,null,null,null,null,null,null,"Função",null,null,null,null,null,null,"Primário (KW)",null,null,null,null,null,null,"Secundário (W)",null,null,null,null,null,null,"Tempo (s)"]
[null,null,null,"TP Adotado (Proteção)",null,null,null,null,null,null,null,null,null,null,null,null,null,null,null,null,null,null,null,null,null,null,null,32,null,null,null,null,null,null,null,null,null,null,null,null,null,null,null,null,null,null,null,null,null,null,null,null,null,null,null,"Minigeração"]
[null,null,null,"Ligação"]
[null,null,null,"Exatidão"]
[]
[null,null,null,"Primário",null,null,null,null,null,null,null,null,null,null,null,{"$f":"IF(I41=\"13,8 kV\",\"13,8\",IF(I41=\"13,8/√3\",\"7,97\",IF(I41=\"13,2 kV\",\"13,2\",IF(I41=\"13,2/√3\",\"7,63\",IF(I41=\"34,5 kV\",\"34,5\",IF(I41=\"34,5/√3\",\"19,94\",\"0\"))))))","v":"0"},null,null,null,null,null,"(kV)"]
[null,null,null,"Secundário",null,null,null,null,null,null,null,null,null,null,null,{"$f":"IF(I42 =\"115V\",\"115\",IF(I42=\"115/√3\",\"66,39\",IF(I42=\"220V\",\"220\",IF(I42=\"220/√3\",\"127\",\"0\"))))","v":"0"},null,null,null,null,null,"(V)"]
[null,null,null,"Relação de Transformação",null,null,null,null,null,null,null,null,null,null,null,{"$f":"(P41/P42)*1000","v":{"$error":"#DIV/0!"}}]

{"sheet":"Resumo","index":3,"n_rows":35,"n_cols":6,"rows_kept":35,"cut":false,"hidden":false,"merged":[[28,2,28,3],[28,4,28,5],[30,4,30,5],[29,1,30,1],[31,1,32,1],[31,2,32,3],[32,4,32,5],[29,2,30,3],[27,2,27,3],[6,2,6,3],[7,2,7,3],[8,2,8,3],[18,4,18,5],[21,4,21,5],[24,4,24,5],[27,4,27,5],[25,2,26,3],[26,4,26,5],[13,5,14,5],[13,4,14,4],[13,2,14,3],[2,1,2,2],[12,5,12,7],[16,2,16,3],[2,3,2,6],[34,2,34,4],[22,2,22,3],[23,2,23,3],[24,2,24,3],[17,2,17,3],[18,2,18,3],[19,2,19,3],[20,2,20,3],[21,2,21,3],[4,2,4,5],[11,2,11,3],[10,2,10,3]]}
[]
[]
[null,null,null,"CHECK LIST - ESTUDO DE PROTEÇÃO"]
[]
[null,null,"RESUMO DOS AJUSTES"]
[]
[null,null,"Valor Primário",null,"Valor Secundário","Classe de Exatidão"]
[null,"TC",{"$f":"Ajustes!L23","v":0},null,{"$f":"Ajustes!Q23","v":5},{"$f":"CONCATENATE(Ajustes!L24,Ajustes!Q24)","v":"10B"}]
[null,"TP",{"$f":"Ajustes!I41","v":0},null,{"$f":"Ajustes!I42","v":0},{"$f":"Ajustes!I39","v":0}]
[]
[null,null,"Relé",null,"Fabricante","Modelo"]
[null,null,{"$f":"Ajustes!AZ3","v":0},null,{"$f":"Ajustes!AZ4","v":0},{"$f":"Ajustes!AZ5","v":0}]
[]
[null,null,"Ajuste Secundário/Primário do TC ou a RTC",null,"RTC",{"$f":"IF(E14=\"Primário\",VLOOKUP(Ajustes!L23,Ajustes!L23:P25,1,FALSE),(IF(E14=\"RTC\",VLOOKUP(Ajustes!L26,Ajustes!L26,1,FALSE))))","v":0}]
[]
[]
[null,null,"Função de Proteção",null,"Valores Secundários","Valores Primários"]
[null,null,51,null,{"$f":"F18/F14","v":{"$error":"#DIV/0!"}},{"$f":"Ajustes!AL21","v":0}]
[null,null,"51 (dt)",null,{"$f":"Ajustes!AL22","v":0}]
[null,null,50,null,{"$f":"F20/F14","v":{"$error":"#DIV/0!"}},{"$f":"Ajustes!AL25","v":0}]
[null,null,"51N",null,{"$f":"F21/Ajustes!L26","v":{"$error":"#DIV/0!"}},{"$f":"Ajustes!AR21","v":0}]
[null,null,"51N(dt)",null,{"$f":"Ajustes!AR22","v":0}]
[null,null,"50N",null,{"$f":"F23/F14","v":{"$error":"#DIV/0!"}},{"$f":"Ajustes!AR25","v":0}]
[null,null,"51NS",null,{"$f":"F24/F14","v":{"$error":"#DIV/0!"}},{"$f":"Ajustes!AX21","v":0}]
[null,null,"51NS(t)",null,{"$f":"CONCATENATE(Ajustes!AX22,Ajustes!BD22)","v":"(s)"}]
[null,null,"59T",null,{"$f":"Ajustes!AP29","v":0},{"$f":"Ajustes!AI29","v":0}]
[null,null,null,null,{"$f":"CONCATENATE(Ajustes!AW29,Ajustes!BD22)","v":"(s)"}]
[null,null,47,null,{"$f":"Ajustes!AI30","v":0}]
[null,"Minigeração","27-0",null,{"$f":"Ajustes!AP31","v":0}]
[null,"Minigeração",32,null,{"$f":"Ajustes!AP37","v":0},{"$f":"Ajustes!AI37","v":0}]
[null,null,null,null,{"$f":"CONCATENATE(Ajustes!AW37,Ajustes!BD22)","v":"(s)"}]
[null,"Minigeração","59N",null,{"$f":"Ajustes!AP32","v":0},{"$f":"Ajustes!AI32","v":0}]
[null,null,null,null,{"$f":"CONCATENATE(Ajustes!AW32,Ajustes!BD22)","v":"(s)"}]
[]
[null,null,"ELO FUSÍVEL - TOMADA ELEKTRO"]

{"sheet":"Tabelas","index":4,"n_rows":25,"n_cols":17,"rows_kept":25,"cut":false,"hidden":false,"merged":[]}
[]
[null,"Z%","Ponto Ansi","Tempo Máximo de Duração"]
[null,4,25,2]
[null,5,20,3]
[null,6,16.600000000000001,4]
[null,7,14.3,5,null,null,null,null,null,0.92,null,"13,2 KV","115V",1.1499999999999999,null,"0,3P75",13.8]
[null,null,null,null,null,null,null,null,null,0.93,null,"13,2/√3","115/√3",1.2,null,null,34.5]
[null,null,null,null,null,null,null,null,null,0.94,null,"13,8 KV","220V",1.25,null,null,13.2]
[null,null,null,null,null,null,null,null,null,0.95,null,"13,8/√3","220/√3",1.3]
[null,null,null,null,null,null,null,null,null,0.96,null,"34,5 kV"]
[null,null,null,null,null,null,null,null,null,0.97,null,"34,5/√3"]
[null,null,null,null,{"$f":"IF(Ajustes!O15=4,\"25\",IF(Ajustes!O15=5,\"20\",IF(Ajustes!O15=6,\"16,6\",IF(Ajustes!O15=7,\"14,3\"))))","v":false},null,null,0.15,null,0.98]
[null,null,null,null,null,null,null,null,null,0.99]
[null,null,null,null,1,null,null,null,null,1]
[null,null,null,{"$error":"#DIV/0!"}]
[null,null,null,{"$error":"#DIV/0!"},null,null,null,null,null,null,null,null,"51,50,51N,50N,51NS,47 e 59"]
[null,null,null,null,null,null,null,null,null,null,null,null,"51,50,51N,50N,51NS,47,59, 59N, 27-0 e 32"]
[]
[]
[null,null,null,null,null,null,null,0.5]
[null,null,null,null,null,null,null,1]
[null,null,null,null,null,null,null,1.5]
[null,null,null,null,null,null,null,2]
[null,null,null,null,null,null,null,2.5]
[null,null,null,null,null,null,null,3]

{"sheet":"Instruções","index":5,"n_rows":79,"n_cols":6,"rows_kept":79,"cut":false,"hidden":false,"merged":[[50,1,62,15],[6,1,10,15],[63,1,77,15],[78,1,97,15],[21,1,49,15],[11,1,20,15],[2,5,2,15],[3,1,3,15],[4,1,4,15],[5,1,5,4],[5,5,5,15]]}
[]
[]
[null,null,null,null,null,"CHECK LIST - ESTUDO DE PROTEÇÃO"]
[]
[null,"Instruções de Preenchimento"]
[]
[null,"Preencher apenas os campos editáveis, marcados em verde e cinza, conforme  exemplos abaixo. Atentar também, para a sequência de preenchimento numeradas ao lado das tabelas."]
[]
[]
[]
[]
[null,"Os campos não editáveis (em branco) possuem lógica/formulas, dessa forma apresentarão resultados após o preencimento dos campos editáveis"]
[]
[]
[]
[]
[]
[]
[]
[]
[]
[null,"Atentar para os comentários inseridos nas células, pois eles esclarecem sobre os resultados e auxiliam no entendimento/preenchimento"]
[]
[]
[]
[]
[]
[]
[]
[]
[]
[]
[]
[]
[]
[]
[]
[]
[]
[]
[]
[]
[]
[]
[]
[]
[]
[]
[]
[]
[null,"As tabelas de check, fazem conferência, de acordo com as regras da DIS-NOR-036, entre os ajustes do cliente (carga) e os ajustes da ELEKTO (fonte). Para seguir, deverão constar como \"OK\". \"Falso\", significa que há erros.  Há casos porém, quando a carga necessitar de ajustes maioes que a fonte, poderá seguir como \"Falso\". Ex. Ajuste da função 51 de 200A (corrente de carga 180) e  o  ajuste da 51 em 180A (fonte)"]
[]
[]
[]
[]
[]
[]
[]
[]
[]
[]
[]
[]
[null,"Para clientes  apenas com carga, ou seja, que não forem minigeração fotovoltaica, com inversores que se conectam a rede através de inversores com anti-ilhamento, não há necessidade de ajustar as funções 59N, 27-0 e 32. Para efeito de otimização, algumas dessas funções são preenchidas de forma automática (de acordo com as regras da norma ND.65)."]
[]
[]
[]
[]
[]
[]
[]
[]
[]
[]
[]
[]
[]
[]
[null,"No final, ser-lhe-á, apresentado um resumo (de preenchimento automático), dos ajustes e dos equipamentos do sistema de proteção. Atentar para alterar o campo cinza, indicando se os ajustes secundários observam o Primário do TC ou o RTC."]

{"sheet":"Instruções 2","index":6,"n_rows":428,"n_cols":6,"rows_kept":428,"cut":false,"hidden":false,"merged":[[2,5,2,15],[3,1,3,15],[4,1,4,15],[5,1,5,4],[5,5,5,15],[86,1,115,15],[116,1,121,15],[122,1,127,15],[6,1,12,15],[13,1,68,15],[69,1,82,15],[83,1,85,15],[145,1,147,15],[148,1,154,15],[155,1,159,15],[128,1,131,15],[133,1,139,15],[140,1,144,15],[216,1,234,15],[235,1,240,15],[241,1,247,15],[248,1,251,15],[160,1,175,15],[176,1,184,15],[185,1,189,15],[190,1,215,15],[275,1,281,15],[282,1,285,15],[286,1,292,15],[293,1,297,15],[252,1,256,15],[257,1,263,15],[265,1,274,15],[298,1,322,15],[323,1,325,15],[326,1,330,15],[331,1,335,15],[336,1,342,15],[422,1,426,15],[427,1,441,15],[343,1,368,15],[388,1,401,15],[369,1,387,15],[402,1,421,15]]}
[]
[]
[null,null,null,null,null,"CHECK LIST - ESTUDO DE PROTEÇÃO"]
[]
[null,"Dicas  e Comentários sobre como efetuar o estudo de proteção (DIS-NOR-36)"]
[]
[null,"Projeto de Proteção (coordenação/seletividade).\n\nO estudo de proteção para cabines primárias com potência superior a 300 KVA e/ou proteção através de disjuntor de média tensão e relés indiretos, deverão ser apresentados, conforme a norma DIS-NOR-036, sobretudo os seguintes itens:\n\n7.38.2.13, 7.33.3 (subitens), 7.33.4, 7.33.5, 7.33.6,  7.33.7 e Anexo II da norma DIS-NOR-36, da ELEKTRO.\n\nSalientamos que, antes da elaboração do estudo, deverão ser solicitados os dados de curto-circuito e ajustes de proteção a montante da concessionária (fonte), de forma a elaborar um estudo assertivo e evitar reprovas desnecessárias. Vide um modelo abaixo:\n"]
[]
[]
[]
[]
[]
[]
[]
[]
[]
[]
[]
[]
[]
[]
[]
[]
[]
[]
[]
[]
[]
[]
[]
[]
[]
[]
[]
[]
[]
[]
[]
[]
[]
[]
[]
[]
[]
[]
[]
[]
[]
[]
[]
[]
[]
[]
[]
[]
[]
[]
[]
[]
[]
[]
[]
[]
[]
[]
[]
[]
[]
[]
[null,"\nPara a solicitação de dados de curto e proteção, deverá encaminhar um e-mail à atendimento.personalizado@elektro.com.br e informar os dados da unidade consumidora solicitante e fornecer um número de confiabilidade válido, para identificar do ponto de conexão do cliente ou o ponto de conexão existente mais próximo.\n\nComo confiabilidades consideramos chaves seccionadoras, transformadores, religadores, números de medidores, unidades consumidoras, etc. Nos equipamentos os números poderão ser encontrados nos postes a uma altura aproximada de 4 metros, com números pintados em preto com o fundo em amarelo, ou então números pintados no tanque dos transformadores na cor preta (Ex. 109315 – 3 – 15). Já os números dos medidores podem ser encontrados no visor dos equipamentos (Ex. 3T05067-1).\nOs números das unidades consumidoras, poderão ser encontrados nas contas/faturas, fornecidas pela ELEKTRO.\n"]
[]
[]
[]
[]
[]
[]
[]
[]
[]
[]
[]
[]
[]
[null,"\n6.1.2.6. Documentos necessários para apresentar o estudo de proteção."]
[]
[]
[]
[]
[]
[]
[]
[]
[]
[]
[]
[]
[]
[]
[]
[]
[]
[]
[]
[]
[]
[]
[]
[]
[]
[]
[]
[]
[]
[]
[]
[]
[null,"\nQuanto ao diagrama unifilar e trifilar, deverão ser legíveis e demonstrar as características elétricas de todos os componentes que fazem parte do sistema de proteção e transformação. Incluindo, quando necessário, legendas, com isso, facilitando o entendimento por parte da concessionária."]
[]
[]
[]
[]
[]
[null,"\nOs Itens 7.33.3 (subitens), 7.33.4, 7.33.5, 7.33.6 e 7.33.7. Tratam dos critérios a serem observados na elaboração do estudo de proteção. \n\nAbaixo os principais pontos de atenção, que no geral são os principais itens de reprova na ELEKTRO."]
[]
[]
[]
[]
[]
[]
[]
[]
[]
[]
[null,"Comentário: O relé indireto apresentado para a proteção de cabines, deverá possuir no mínimo as seguintes funções: 51 e 50, 51N e 50N, 51NS, 47 e 59, fonte e trip capacitivo. Demais ajustes são dispensados.Para comprovar que o relé possui tais funções, deverá enviar sempre as páginas (e somente elas) do manual que demonstrem as funções. Caso o relé não possuir, deverá utilizar relés auxiliares que efetuem as funções. Ex. Supervisor trifásico (47 e 59). Fonte e trip auxiliares deverão ser instaladas ainda que os relés possuam fonte e disparo internas."]
[]
[]
[]
[]
[]
[]
[]
[]
[]
[]
[]
[null,"Comentário: O cliente somente poderá utilizar as curvas Muito Inversa (MI/VI) e Extremamente Inversa (EI), ficando as curvas Normalmente Inversas (NI), reservadas para a utilização da concessionária."]
[]
[]
[]
[]
[]
[]
[]
[]
[]
[null,"Comentário: O elo fusível deverá ser proposto pelo cliente, dessa forma, tanto no estudo, quanto no coordenograma, deverá demonstrar o elo fusível proposto. Lembrando que deverá verificar os tempo de curva (observando as características do estudo como corrente, inrush, etc.), de forma que seja possível dimensionar o menor elo fusível possível."]
[]
[]
[]
[]
[]
[]
[]
[]
[]
[]
[]
[]
[]
[]
[]
[]
[]
[]
[]
[]
[null,"Comentário:  \"b\". A função ANSI 51 (temporizada de fase) deverá sempre observar as correntes de curto-circuito entre fases (bifásico) e ser seletivas com as mesmas.\n\n\"c\". O ajuste da função 51 ocorre em função/relação à corrente de carga (demanda contratada) e caso a mesma (demanda) estiver abaixo da capacidade do transformador, seu ajuste poderá ocorrer em até 1,3 vezes a corrente de crga calculada. Atenção, no momento do ajuste, verificar se a grandeza adotada não acarretará a sobrecarga do transformador, observando-se também o fator de potência adotado.\n\n"]
[]
[]
[]
[]
[]
[]
[]
[]
[]
[]
[]
[]
[]
[null,"Comentários: A função instantânea de fase (50), deverá permitir a livre circulação da corrente transitória de magnetização (inrush), ser sensível as menores corrente de curto-circuito entre fases e ter ajuste em no máximo 80% dos ajustes das proteções a montante.\n\nQuanto ao cálculo de inrush, o fator inrush (constante de multiplicação da corrente de magnetização) deverá observar o tipo de isolação dos equipamentos transformadores utilizados (os mesmos variam em caso de isolação a óleo ou a seco). Nos casos de transformadores a óleo a concessionária indica valores próximos a 6 vezes (valores diversos poderão ser utilizados desde que comprovados através de laudo do fabricante do equipamento).\n\nPara transformadores a seco, o fator inrush costuma ser maior, contudo fatores de multiplicação altos (maiores que 12 vezes), deverão ser comprovados, através de laudo do fabricante. Tal comprovação é necessária, uma vez que a corrente transitória de magnetização e o ajuste da função 50, influem diretamente na proteção por fusível a ser utilizada.\n\nEx. Há casos onde verificamos que foi utilizado o fator inrush 14 vezes, quando o correto era 8 vezes. No primeiro caso, foi necessário a utilização de um elo fusível de 40K, já no segundo um elo de 15K. No primeiro caso, acarretou uma dificuldade na seletividade da rede de distribuição da concessionária em virtude de utilização de elos, já na segunda, ainda é possível utilizar alguns elos para efetuar a seletividade (Vide norma ND.78). Então, no momento de efetuar o ajuste da função 50, o ajuste deverá ser o mais restritivo possível, devendo efetuar simulações com curvas (MI ou EI) e tempos (DT), garantindo utilizar o menor elo possível, desde que seletivo com as demais condições de proteão.\n\nNota: O cálculo de inrush deverá utilizar a potência total de transformação (teórico). Vide modelo do Anexo I."]
[]
[]
[]
[]
[]
[]
[]
[]
[]
[]
[]
[]
[]
[]
[]
[]
[]
[]
[]
[]
[]
[]
[]
[]
[]
[]
[]
[]
[]
[]
[]
[]
[]
[]
[]
[]
[]
[]
[]
[]
[]
[]
[]
[]
[null,"Comentário: O elemento  temporizado tipo tempo definido (51NS) deve ter o ajuste de corrente de partida referida no primário entre 3 e 6A e ajuste de tempo de 0,05 a 1 segundo.  Casos excepcionais de instalações existentes (já ligadas e sem alteração no projeto aprovado), com impossibilidade de ajuste abaixo de 10A (em função do Tap mínimo poderão ser aceitos (se comprovado e nas condições acima informadas)."]
[]
[]
[]
[]
[]
[]
[]
[]
[]
[]
[]
[]
[null,"Comentário: O nobreak deverá possuir autonomia mínima de 2 horas e ser alimentado/energizado por TP ou transformador auxiliar (orientamos TP auxiliar). Dessa forma, toda nova instalação deverá ser previsto o TP auxiliar. Não poderá ser utilizado os TP's de proteção. Vide o Item 7.14.11"]
[]
[]
[]
[]
[]
[]
[]
[]
[]
[]
[]
[]
[]
[]
[]
[]
[null,"Comentário: Além da instalação do nobreak, também deverão ser instalados fonte capacitiva e trip capacitivo (disparo), externos/auxiliares, para correto funcionamento do sistema de proteção no momento de oscilação/afundamento. Ambos deverão ser alimentados pelo nobreak.\n\nAinda que alguns relés já possuam as fontes internas, deverá ser prevista a instalação, posto que algumas fontes possuem tempos reduzidos (2, 3 e 4s), o que não é considerado corretamente dimensionado pela ELEKTRO.\n\nCaso for utilizado banco de baterias retificado, não há necessidade de instalação, tão somente nobreak."]
[]
[]
[]
[]
[]
[]
[]
[]
[]
[]
[]
[]
[]
[]
[]
[]
[null,"Comentário:  Orientamos pela não utilização, evitando desligamentos desnecessários/indevidos na cabine, o que não é interessante tanto para o cliente, quanto para a concessionária. Dessa forma, deverá efetuar a proteção por subtensão diretamente na baixa tensão, junto aos motores e outras cargas sensíveis"]
[]
[]
[]
[]
[]
[]
[]
[]
[]
[]
[null,"Comentário:  Atentar para ajustes muito baixos (próximos a tensão nominal), pois tendo em vista a classe de exatidão dos equipamentos (TP's) e as oscilações naturais da rede de distribuição da ELEKTRO (autorizadas pela Regulação Vigente), poderão acarretar desligamentos desnecssários na cabine. Orientamos ajustes acima de 10%. Contudo é critério do responsável técnico o fator de sobretensão."]
[]
[]
[]
[]
[]
[]
[]
[]
[]
[]
[]
[]
[]
[]
[]
[]
[]
[]
[]
[]
[]
[]
[]
[]
[]
[]
[]
[]
[]
[null,"Comentário:  O disjuntor deverá possuir capacidade de interrupção sob curto-circuito mínima de 16 kA. Demonstrar as características tanto nos diagrmas, quanto no estudo de proteção."]
[]
[]
[]
[]
[]
[]
[]
[]
[]
[]
[]
[]
[null,"Comentário:   Não poderá ocorrer, em nenhuma hipótese, sobrecarga nos transformadores de serviços de instalações particulares. \n\nO transformador auxiliar instalado anes do disjuntor geral (função de incêncio, iluminação da cabine, etc.) deverá ser protegido por chave seccionadora tripolar de abertura em carga,c om fusíveis limitadores de corrente."]
[]
[]
[]
[]
[]
[]
[]
[]
[]
[]
[]
[]
[]
[]
[]
[]
[]
[]
[]
[]
[]
[]
[]
[]
[]
[]
[]
[]
[]
[]
[]
[]
[]
[]
[]
[]
[]
[]
[]
[]
[]
[]
[]
[]
[]
[]
[]
[]
[]
[]
[]
[null,"Comentário: Orientamos que todos os estudos de proteção/seletividade e coordenoagramas, sejam apresentados conforme o modelo disponibilizado no Anexo II da norma DIS-NOR-036 da ELEKTRO.\n\nVide que no anexo constam exemplos de cálculos de todas as funções de proteção, dimensionamento dos TC's, TP's, modelos de diagramas e coordenogramas.\n\nDeverão ser demonstrados no coordenograma as curvas de fase e neutro do cliente e da distribuidora, as curvas dos elos fusíveis de proteçaõ, o inrush e os Pontos ANSI de todos os transformadores.\n\nNo cálculo de dimensionamento do TC, atentar para utilização da máxima corrente de curto-circuito da barra (10 KA), eviatando reprovas e alterações na proteçaõ do cliente, em virtude de possíveis alterações na rede de distribuição da concessionária (caso fosse utilizado o curto-circuito assímetrico trifásico do pontod e conexão)."]
[]
[]
[]
[]
[]
[]
[]
[]
[]
[]
[]
[]
[]
[]
[]
[]
[]
[]
[]
[]
[]
[]
[]
[]
[]
[]
[]
[]
[]
[]
[]
[]
[]
[null,"Comentário: Todo estudo de proteção deverá ser enviada uma tabela resumo, contendo as características dos equipamentos e os ajustes primários, secundários, tipos de curvas e seus tempos. \n\nNota: A planilha de proteção já apresenta um resumo. Verificar."]
[]
[]
[]
[]
[null,"\nNormas e Formulários\n\n1. Todas as normas e formulários poderão ser encontrados no seguinte link: https://www.elektro.com.br/seu-negocio/normas-e-formularios;\n\n\n2. Diretrizes de projetos particulares: https://www.elektro.com.br/prestadores-de-servico/projeto-particular\n\nDúvidas Técnicas:\n\nAs dúvidas exclusivamente técnicas, referentes à elaboração de projetos particulares, poderão ser encaminhadas para : análise.projetos@elektro.com.br ."]

{"sheet":"backup","index":7,"n_rows":42,"n_cols":13,"rows_kept":42,"cut":false,"hidden":true,"merged":[[40,6,40,10],[41,6,41,10],[35,6,35,10],[36,6,36,10],[37,6,37,10],[38,6,38,10],[39,6,39,10],[30,6,30,10],[31,6,31,10],[32,6,32,10],[33,6,33,10],[34,6,34,10],[29,6,29,10],[15,3,16,3],[5,0,5,1],[11,0,11,3],[18,0,18,3],[10,5,10,7],[16,5,16,6]]}
["Fator de potência",null,null,null,null,"Icarga (A)",{"$f":"B3/(B1*B2*SQRT(3))","v":{"$error":"#DIV/0!"}}]
["Tensão (kV)",null,null,null,null,"Inominal (A)",{"$f":"B4/(B2*SQRT(3))","v":{"$error":"#DIV/0!"}},null,null,null,"Z%","Ponto ANSI (A)","Tempo máximo de duração (s)"]
["Demanda Contratada (kW)",500,null,null,null,"Fator K (Inrush)",11,null,null,null,4,423.59938228586668,2]
["Capacidade Instalada  (kVA)",1000,{"$f":"500*0.92","v":460},null,null,"Inrush (A)",{"$f":"G3*G2","v":{"$error":"#DIV/0!"}},null,"Valor mínimo",null,5,338.87950582869337,3]
[null,null,null,null,null,"Inrush (A) (Adotado)",300,"em (s)",0.1,null,6,281.2699898378155,4]
["Correntes de Curto-circuito do consumidor",null,null,null,null,"Z%",5,null,null,null,7,242.29884666751576,5]
["Curto-Circuito","Simétrica (A)",null,null,"Por trafo","ANSI",{"$f":"IF(G6=K3,L3,IF(G6=K4,L4,IF(G6=K5,L5,IF(G6=K6,L6,FALSE))))","v":338.87950582869337},"em (s)",3]
["Trifásico",3000]
["Bifásico",2660]
["Fase-Terra (mínimo)",211]
[null,null,null,null,null,"TC Adotado"]
["Ajustes das proteções da ELEKTRO",null,null,null,null,"Relação ",200,"/5"]
["Relés","Fase (50/51)","Neutro convencional 50/51N","Neutro de alta sensibilidade 51NS",null,"Classe de exatidão","10B",100]
["Temporizado - Ip (A)",600,120,8,null,"Itc% de Inominal",{"$f":"G12/G2","v":{"$error":"#DIV/0!"}},{"$f":"IF(G14>1,\"OK\",FALSE)","v":{"$error":"#DIV/0!"}}]
["Time Level/t51NS",0.1,0.1,2.2000000000000002,null,"RTC",{"$f":"G12/5","v":40}]
["Padrão da curva","ni","ni"]
["Instantâneo",3000,1200,null,null,"Cálculo de Vsat"]
[null,null,null,null,null,"Ztotal (Ω)",0.218]
["Ajustes das proteções do Cliente",null,null,null,null,"Icc (A)",{"$f":"10000/G15","v":250}]
["Relés","Fase (50/51)","Neutro convencional 50/51N","Neutro de alta sensibilidade 51NS",null,"Vsat",{"$f":"G19*G18","v":54.5},null,{"$f":"IF(G20<H13,\"OK\",FALSE)","v":"OK"}]
["Temporizado - Ip (A)",30,null,6]
["Time Level/t51NS",0.1,null,1,"(s)","I térmica (1s)",{"$f":"10000/G12","v":50},"em (s)",{"$f":"IF(G22<=80,\"OK\",FALSE)","v":"OK"},"Valores usuais: 80"]
["Padrão da curva","MI","MI"]
["Instantâneo",2000,null,null,null,null,150,0.2]
[null,null,null,null,null,null,null,20]
["51F - CHECK",null,null,"50F - CHECK"]
["Condições","Status",null,"Condições","Status"]
["51F>Ic",{"$f":"IF(B21>G1,\"OK\",FALSE)","v":{"$error":"#DIV/0!"}},null,"50F>Inrush",{"$f":"IF(B24>G5,\"OK\",FALSE)","v":"OK"}]
["51F% de Icarga",{"$f":"IF(B21/G1<1.5,\"OK\",FALSE)","v":{"$error":"#DIV/0!"}},null,"50F<0,8*50Fek",{"$f":"IF(B24<0.8*B17,\"OK\",FALSE)","v":"OK"},"Atenção, RL não tem instantâneo!"]
["51F<Icc2ø",{"$f":"IF(B21<B9,\"OK\",FALSE)","v":"OK"},null,"50F<Icc2ø",{"$f":"IF(B24<B9,\"OK\",FALSE)","v":"OK"},"Quando o bifásico não for possível de ser sensibilizado, tentar sensibilizar com Icc3ø","Outros Itens comuns"]
["51F<0,8*51Fek",{"$f":"IF(B21<0.8*B14,\"OK\",FALSE)","v":"OK"},null,null,null,null,"1- Verificar se possui chave de intertravamento elétrico e mecânico ( Para Gerador)"]
["Padrão da curva",{"$f":"IF(B23=\"MI\",\"OK\",IF(B23=\"EI\",\"OK\",FALSE))","v":"OK"},null,"50N - CHECK",null,null,"2- Capacidade de Interrupção simétrica sob curto-circuito mínima do Disjuntor: 16 kA "]
[null,null,null,"Condições","Status",null,"3- Verificar Classe de exatidão dos TPs utilizados"]
["51N - CHECK",null,null,"50N<Iccøt",{"$f":"IF(C24<B10,\"OK\",FALSE)","v":"OK"},null,"4-Verificar ajuste de SobreTensão(59)"]
["Condições","Status",null,"50N<0,8*50Nek",{"$f":"IF(C24<0.8*C17,\"OK\",FALSE)","v":"OK"},"Atenção, RL não tem instantâneo!","5- Verificar se a função 47 está ativada"]
["51N<Iccøt",{"$f":"IF(C21<B10,\"OK\",FALSE)","v":"OK"},null,null,null,null,"6-Verificar 4 Itens no Relé: Funções de Tensão, Fonte Capacitiva, Trip Capacitivo e Funções de Proteção"]
["51N<0,8*51Nek",{"$f":"IF(C21<0.8*C14,\"OK\",FALSE)","v":"OK"},null,"51NS - CHECK",null,null,"7- Verificar a aderência do Diagrama Unifilar à norma"]
["Padrão da curva",{"$f":"IF(C23=\"MI\",\"OK\",IF(C23=\"EI\",\"OK\",FALSE))","v":"OK"},null,"Condições","Status",null,"8- Verificar a aderência do Diagrama Trifilar de Proteção à norma"]
[null,null,null,"51NS<0,8*51NSek",{"$f":"IF(D21<=6,IF(D21>=3,\"OK\",FALSE),FALSE)","v":"OK"},"Deve estar entre 3 e 6","9- Plotar as curvas da cabine no Coordenograma e avaliar a seletividade"]
[null,null,null,"tempo",{"$f":"IF(D22<=1,IF(D22>=0.05,\"OK\",FALSE),FALSE)","v":"OK"},"no máximo em 1,0 s","10-Avaliar o dimensionamento do elo na retaguarda e a seletividade com as curvas do cliente"]
[null,null,null,null,null,null,"11- Cliente pode desabilitar a curva temporizada de neutro"]
[null,null,null,null,null,null,"12 -  Verificar Ajustes Primários x Secundários (Relação de Transformação)"]